Workbook

Sheet Sheet1
A1: Kazan Yüksekliği | B1: 285 | C1: mm
A2: Kazan Genişliği | B2: 315 | C2: mm
A3: Kazan Hacmi | B3: =(B1*((B2/2)^ 2)*3.14)/1000000 -> 22.19911313 | C3: litre
A4: Birim mm başına hacim | B4: =(((B2/2)^ 2)*3.14)/1000000 -> 0.077891625 | C4: litre
A8: Cetvelden okunan mm | B8: Mevcut Hacim litre
A9: 0 | B9: =B3 -> 22.19911313
A10: 1 | B10: =$B$3-(A10*$B$4) -> 22.1212215
A11: =1+A10 -> 2 | B11: =$B$3-(A11*$B$4) -> 22.04332988
A12: =1+A11 -> 3 | B12: 21.96543825
A13: 4 | B13: 21.88754662
A14: 5 | B14: 21.809655
A15: 6 | B15: 21.73176337
A16: 7 | B16: 21.65387175
A17: 8 | B17: 21.57598013
A18: 9 | B18: 21.4980885
A19: 10 | B19: 21.42019687
A20: 11 | B20: 21.34230525
A21: 12 | B21: 21.26441362
A22: 13 | B22: 21.186522
A23: 14 | B23: 21.10863038
A24: 15 | B24: 21.03073875
A25: 16 | B25: 20.95284713
A26: 17 | B26: 20.8749555
A27: 18 | B27: 20.79706387
A28: 19 | B28: 20.71917225
A29: 20 | B29: 20.64128063
A30: 21 | B30: 20.563389
A31: 22 | B31: 20.48549738
A32: 23 | B32: 20.40760575
A33: 24 | B33: 20.32971412
A34: 25 | B34: 20.2518225
A35: 26 | B35: 20.17393087
A36: 27 | B36: 20.09603925
A37: 28 | B37: 20.01814763
A38: 29 | B38: 19.940256
A39: 30 | B39: 19.86236437
A40: 31 | B40: 19.78447275
A41: 32 | B41: 19.70658112
A42: 33 | B42: 19.6286895
A43: 34 | B43: 19.55079788
A44: 35 | B44: 19.47290625
A45: 36 | B45: 19.39501463
A46: 37 | B46: 19.317123
A47: 38 | B47: 19.23923137
A48: 39 | B48: 19.16133975
A49: 40 | B49: 19.08344813
A50: 41 | B50: 19.0055565
A51: 42 | B51: 18.92766488
A52: 43 | B52: 18.84977325
A53: 44 | B53: 18.77188162
A54: 45 | B54: 18.69399
A55: 46 | B55: 18.61609837
A56: 47 | B56: 18.53820675
A57: 48 | B57: 18.46031513
A58: 49 | B58: 18.3824235
A59: 50 | B59: 18.30453187
A60: 51 | B60: 18.22664025
A61: 52 | B61: 18.14874862
A62: 53 | B62: 18.070857
A63: 54 | B63: 17.99296538
A64: 55 | B64: 17.91507375
A65: 56 | B65: 17.83718212
A66: 57 | B66: 17.7592905
A67: 58 | B67: 17.68139887
A68: 59 | B68: 17.60350725
A69: 60 | B69: 17.52561563
A70: 61 | B70: 17.447724
A71: 62 | B71: 17.36983238
A72: 63 | B72: 17.29194075
A73: 64 | B73: 17.21404912
A74: 65 | B74: 17.1361575
A75: 66 | B75: =$B$3-(A75*$B$4) -> 17.05826588
A76: =1+A75 -> 67 | B76: 16.98037425
A77: 68 | B77: 16.90248263
A78: 69 | B78: 16.824591
A79: 70 | B79: 16.74669937
A80: 71 | B80: 16.66880775
A81: 72 | B81: 16.59091612
A82: 73 | B82: 16.5130245
A83: 74 | B83: 16.43513288
A84: 75 | B84: 16.35724125
A85: 76 | B85: 16.27934963
A86: 77 | B86: 16.201458
A87: 78 | B87: 16.12356637
A88: 79 | B88: 16.04567475
A89: 80 | B89: 15.96778313
A90: 81 | B90: 15.8898915
A91: 82 | B91: 15.81199987
A92: 83 | B92: 15.73410825
A93: 84 | B93: 15.65621662
A94: 85 | B94: 15.578325
A95: 86 | B95: 15.50043338
A96: 87 | B96: 15.42254175
A97: 88 | B97: 15.34465012
A98: 89 | B98: 15.2667585
A99: 90 | B99: 15.18886687
A100: 91 | B100: 15.11097525
A101: 92 | B101: 15.03308362
A102: 93 | B102: 14.955192
A103: 94 | B103: 14.87730038
A104: 95 | B104: 14.79940875
A105: 96 | B105: 14.72151713
A106: 97 | B106: 14.6436255
A107: 98 | B107: 14.56573387
A108: 99 | B108: 14.48784225
A109: 100 | B109: 14.40995063
A110: 101 | B110: 14.332059
A111: 102 | B111: 14.25416737
A112: 103 | B112: 14.17627575
A113: 104 | B113: 14.09838412
A114: 105 | B114: 14.0204925
A115: 106 | B115: 13.94260088
A116: 107 | B116: 13.86470925
A117: 108 | B117: 13.78681762
A118: 109 | B118: 13.708926
A119: 110 | B119: 13.63103437
A120: 111 | B120: 13.55314275
A121: 112 | B121: 13.47525112
A122: 113 | B122: 13.3973595
A123: 114 | B123: 13.31946787
A124: 115 | B124: 13.24157625
A125: 116 | B125: 13.16368463
A126: 117 | B126: 13.085793
A127: 118 | B127: 13.00790137
A128: 119 | B128: 12.93000975
A129: 120 | B129: 12.85211812
A130: 121 | B130: 12.7742265
A131: 122 | B131: 12.69633487
A132: 123 | B132: 12.61844325
A133: 124 | B133: 12.54055162
A134: 125 | B134: 12.46266
A135: 126 | B135: 12.38476838
A136: 127 | B136: 12.30687675
A137: 128 | B137: 12.22898512
A138: 129 | B138: 12.1510935
A139: 130 | B139: =$B$3-(A139*$B$4) -> 12.07320187
A140: =1+A139 -> 131 | B140: 11.99531025
A141: 132 | B141: 11.91741862
A142: 133 | B142: 11.839527
A143: 134 | B143: 11.76163537
A144: 135 | B144: 11.68374375
A145: 136 | B145: 11.60585213
A146: 137 | B146: 11.5279605
A147: 138 | B147: 11.45006887
A148: 139 | B148: 11.37217725
A149: 140 | B149: 11.29428562
A150: 141 | B150: 11.216394
A151: 142 | B151: 11.13850237
A152: 143 | B152: 11.06061075
A153: 144 | B153: 10.98271912
A154: 145 | B154: 10.9048275
A155: 146 | B155: 10.82693588
A156: 147 | B156: 10.74904425
A157: 148 | B157: 10.67115262
A158: 149 | B158: 10.593261
A159: 150 | B159: 10.51536937
A160: 151 | B160: 10.43747775
A161: 152 | B161: 10.35958612
A162: 153 | B162: 10.2816945
A163: 154 | B163: 10.20380287
A164: 155 | B164: 10.12591125
A165: 156 | B165: 10.04801962
A166: 157 | B166: 9.970128
A167: 158 | B167: 9.892236375
A168: 159 | B168: 9.81434475
A169: 160 | B169: 9.736453125
A170: 161 | B170: 9.6585615
A171: 162 | B171: 9.580669875
A172: 163 | B172: 9.50277825
A173: 164 | B173: 9.424886625
A174: 165 | B174: 9.346995
A175: 166 | B175: 9.269103375
A176: 167 | B176: 9.19121175
A177: 168 | B177: 9.113320125
A178: 169 | B178: 9.0354285
A179: 170 | B179: 8.957536875
A180: 171 | B180: 8.87964525
A181: 172 | B181: 8.801753625
A182: 173 | B182: 8.723862
A183: 174 | B183: 8.645970375
A184: 175 | B184: 8.56807875
A185: 176 | B185: 8.490187125
A186: 177 | B186: 8.4122955
A187: 178 | B187: 8.334403875
A188: 179 | B188: 8.25651225
A189: 180 | B189: 8.178620625
A190: 181 | B190: 8.100729
A191: 182 | B191: 8.022837375
A192: 183 | B192: 7.94494575
A193: 184 | B193: 7.867054125
A194: 185 | B194: 7.7891625
A195: 186 | B195: 7.711270875
A196: 187 | B196: 7.63337925
A197: 188 | B197: 7.555487625
A198: 189 | B198: 7.477596
A199: 190 | B199: 7.399704375
A200: 191 | B200: 7.32181275
A201: 192 | B201: 7.243921125
A202: 193 | B202: 7.1660295
A203: 194 | B203: =$B$3-(A203*$B$4) -> 7.088137875
... 306 more rows
